{"text_format":"3","workbook":"xlsx","n_sheets":5,"sheets":["Račun","Stranke","Računi – glavni","Podrobnosti računa","Več o sledilniku računov"],"not_rendered":{"defined_names":8},"read":"whole","date_system":"1900"}

{"sheet":"Račun","index":0,"n_rows":39,"n_cols":7,"rows_kept":39,"merged":[[1,1,1,2],[1,3,1,4],[1,5,1,6],[2,1,2,2],[2,3,2,4],[2,5,2,6],[3,3,3,4],[4,3,4,4],[5,3,5,4],[37,1,37,4],[38,1,38,4]]}
[null,"Ime podjetja"]
[null,"Poštni naslov",null,"Telefon: Telefonska številka",null,"E-pošta"]
[null,"Mesto, koda države",null,"Faks: Številka faksa",null,"Spletno mesto"]
[null,"Plačnik računa:",{"$f":"IFERROR(VLOOKUP(VLOOKUP(rngRačun,RačuniGlavni[],2,FALSE),SeznamStrank[],3,TRUE),\"\")","v":"Contoso, Ltd"},{"$f":"\"Telefonska številka: \"&IFERROR(VLOOKUP(VLOOKUP(rngRačun,RačuniGlavni[],2,FALSE),SeznamStrank[],9,FALSE),\"\")","v":"Telefonska številka: 432-555-0189"},null,"Št. računa:","3-456-2"]
[null,"Naslov:",{"$f":"IFERROR(IF((VLOOKUP(VLOOKUP(rngRačun,RačuniGlavni[],2,FALSE),SeznamStrank[],5,FALSE))=\"\",\"\",(VLOOKUP(VLOOKUP(rngRačun,RačuniGlavni[],2,FALSE),SeznamStrank[],5,FALSE))),\"\")","v":"Cvetlična cesta 123"},{"$f":"\"Faks:                        \"&IFERROR(VLOOKUP(VLOOKUP(rngRačun,RačuniGlavni[],2,FALSE),SeznamStrank[],11,FALSE),\"\")","v":"Faks:                        432-555-0123"},null,"Datum računa:",{"$f":"IFERROR(IF(VLOOKUP(rngRačun,RačuniGlavni[],3,FALSE)=\"\",\"\",VLOOKUP(rngRačun,RačuniGlavni[],3,FALSE)),\"\")","v":"2019-08-08"}]
[null,null,{"$f":"IFERROR(VLOOKUP(VLOOKUP(rngRačun,RačuniGlavni[],2,FALSE),SeznamStrank[],6,FALSE)&\", \"& VLOOKUP(VLOOKUP(G4,RačuniGlavni[],2,FALSE),SeznamStrank[],7,FALSE)&\" \"&VLOOKUP(VLOOKUP(G4,RačuniGlavni[],2,FALSE),SeznamStrank[],8,FALSE),\"\")","v":"Celje, Slo 098765"},{"$f":"\"E-poštni naslov: \"&IFERROR(VLOOKUP(VLOOKUP(rngRačun,RačuniGlavni[],2,FALSE),SeznamStrank[],10,FALSE),\"\")","v":"E-poštni naslov: nekdo@example.com"}]
[null,{"$f":"\"Račun za: \"&IFERROR(VLOOKUP(rngRačun,RačuniGlavni[],4),\"\")","v":"Račun za: Projekt 2"}]
[null,"Št. elementa","Opis","Količina","Cena enote","Popust","Cena"]
[null,{"$f":"IFERROR(INDEX(PodrobnostiRačuna[],SMALL(IF(PodrobnostiRačuna[Št. računa]=rngRačun,ROW(PodrobnostiRačuna[])-ROW(PodrobnostiRačuna[#Headers])), ROW(1:1)), MATCH($B$8, PodrobnostiRačuna[#Headers], 0)),\"\")","v":"Z4567"},{"$f":"IFERROR(INDEX(PodrobnostiRačuna[],SMALL(IF(PodrobnostiRačuna[Št. računa]=rngRačun,ROW(PodrobnostiRačuna[])-ROW(PodrobnostiRačuna[#Headers])), ROW(1:1)), MATCH($C$8, PodrobnostiRačuna[#Headers], 0)),\"\")","v":"Račun 3-456-2 Podatki 1"},{"$f":"IFERROR(INDEX(PodrobnostiRačuna[],SMALL(IF(PodrobnostiRačuna[Št. računa]=rngRačun,ROW(PodrobnostiRačuna[])-ROW(PodrobnostiRačuna[#Headers])), ROW(1:1)), MATCH($D$8, PodrobnostiRačuna[#Headers], 0)),\"\")","v":39},{"$f":"IFERROR(INDEX(PodrobnostiRačuna[],SMALL(IF(PodrobnostiRačuna[Št. računa]=rngRačun,ROW(PodrobnostiRačuna[])-ROW(PodrobnostiRačuna[#Headers])), ROW(1:1)), MATCH($E$8, PodrobnostiRačuna[#Headers], 0)),\"\")","v":{"v":5,"d":"5.00 €"}},{"$f":"IFERROR(INDEX(PodrobnostiRačuna[],SMALL(IF(PodrobnostiRačuna[Št. računa]=rngRačun,ROW(PodrobnostiRačuna[])-ROW(PodrobnostiRačuna[#Headers])), ROW(1:1)), MATCH($F$8, PodrobnostiRačuna[#Headers], 0)),\"\")","v":0},{"$f":"IFERROR((D9*E9)-F9,\"\")","v":{"v":195,"d":"195.00 €"}}]
[null,{"$f":"IFERROR(INDEX(PodrobnostiRačuna[],SMALL(IF(PodrobnostiRačuna[Št. računa]=rngRačun,ROW(PodrobnostiRačuna[])-ROW(PodrobnostiRačuna[#Headers])), ROW(2:2)), MATCH($B$8, PodrobnostiRačuna[#Headers], 0)),\"\")","v":"Z4568"},{"$f":"IFERROR(INDEX(PodrobnostiRačuna[],SMALL(IF(PodrobnostiRačuna[Št. računa]=rngRačun,ROW(PodrobnostiRačuna[])-ROW(PodrobnostiRačuna[#Headers])), ROW(2:2)), MATCH($C$8, PodrobnostiRačuna[#Headers], 0)),\"\")","v":"Račun 3-456-2 Podatki 2"},{"$f":"IFERROR(INDEX(PodrobnostiRačuna[],SMALL(IF(PodrobnostiRačuna[Št. računa]=rngRačun,ROW(PodrobnostiRačuna[])-ROW(PodrobnostiRačuna[#Headers])), ROW(2:2)), MATCH($D$8, PodrobnostiRačuna[#Headers], 0)),\"\")","v":40},{"$f":"IFERROR(INDEX(PodrobnostiRačuna[],SMALL(IF(PodrobnostiRačuna[Št. računa]=rngRačun,ROW(PodrobnostiRačuna[])-ROW(PodrobnostiRačuna[#Headers])), ROW(2:2)), MATCH($E$8, PodrobnostiRačuna[#Headers], 0)),\"\")","v":{"v":4,"d":"4.00 €"}},{"$f":"IFERROR(INDEX(PodrobnostiRačuna[],SMALL(IF(PodrobnostiRačuna[Št. računa]=rngRačun,ROW(PodrobnostiRačuna[])-ROW(PodrobnostiRačuna[#Headers])), ROW(2:2)), MATCH($F$8, PodrobnostiRačuna[#Headers], 0)),\"\")","v":{"v":5,"d":"5.00 €"}},{"v":155,"d":"155.00 €"}]
[null,{"$f":"IFERROR(INDEX(PodrobnostiRačuna[],SMALL(IF(PodrobnostiRačuna[Št. računa]=rngRačun,ROW(PodrobnostiRačuna[])-ROW(PodrobnostiRačuna[#Headers])), ROW(3:3)), MATCH($B$8, PodrobnostiRačuna[#Headers], 0)),\"\")","v":"Z4569"},{"$f":"IFERROR(INDEX(PodrobnostiRačuna[],SMALL(IF(PodrobnostiRačuna[Št. računa]=rngRačun,ROW(PodrobnostiRačuna[])-ROW(PodrobnostiRačuna[#Headers])), ROW(3:3)), MATCH($C$8, PodrobnostiRačuna[#Headers], 0)),\"\")","v":"Račun 3-456-2 Podatki 3"},{"$f":"IFERROR(INDEX(PodrobnostiRačuna[],SMALL(IF(PodrobnostiRačuna[Št. računa]=rngRačun,ROW(PodrobnostiRačuna[])-ROW(PodrobnostiRačuna[#Headers])), ROW(3:3)), MATCH($D$8, PodrobnostiRačuna[#Headers], 0)),\"\")","v":30},{"$f":"IFERROR(INDEX(PodrobnostiRačuna[],SMALL(IF(PodrobnostiRačuna[Št. računa]=rngRačun,ROW(PodrobnostiRačuna[])-ROW(PodrobnostiRačuna[#Headers])), ROW(3:3)), MATCH($E$8, PodrobnostiRačuna[#Headers], 0)),\"\")","v":{"v":6,"d":"6.00 €"}},{"$f":"IFERROR(INDEX(PodrobnostiRačuna[],SMALL(IF(PodrobnostiRačuna[Št. računa]=rngRačun,ROW(PodrobnostiRačuna[])-ROW(PodrobnostiRačuna[#Headers])), ROW(3:3)), MATCH($F$8, PodrobnostiRačuna[#Headers], 0)),\"\")","v":{"v":7,"d":"7.00 €"}},{"v":173,"d":"173.00 €"}]
[null,{"$f":"IFERROR(INDEX(PodrobnostiRačuna[],SMALL(IF(PodrobnostiRačuna[Št. računa]=rngRačun,ROW(PodrobnostiRačuna[])-ROW(PodrobnostiRačuna[#Headers])), ROW(4:4)), MATCH($B$8, PodrobnostiRačuna[#Headers], 0)),\"\")","v":"Z4570"},{"$f":"IFERROR(INDEX(PodrobnostiRačuna[],SMALL(IF(PodrobnostiRačuna[Št. računa]=rngRačun,ROW(PodrobnostiRačuna[])-ROW(PodrobnostiRačuna[#Headers])), ROW(4:4)), MATCH($C$8, PodrobnostiRačuna[#Headers], 0)),\"\")","v":"Račun 3-456-2 Podatki 4"},{"$f":"IFERROR(INDEX(PodrobnostiRačuna[],SMALL(IF(PodrobnostiRačuna[Št. računa]=rngRačun,ROW(PodrobnostiRačuna[])-ROW(PodrobnostiRačuna[#Headers])), ROW(4:4)), MATCH($D$8, PodrobnostiRačuna[#Headers], 0)),\"\")","v":40},{"$f":"IFERROR(INDEX(PodrobnostiRačuna[],SMALL(IF(PodrobnostiRačuna[Št. računa]=rngRačun,ROW(PodrobnostiRačuna[])-ROW(PodrobnostiRačuna[#Headers])), ROW(4:4)), MATCH($E$8, PodrobnostiRačuna[#Headers], 0)),\"\")","v":{"v":7,"d":"7.00 €"}},{"$f":"IFERROR(INDEX(PodrobnostiRačuna[],SMALL(IF(PodrobnostiRačuna[Št. računa]=rngRačun,ROW(PodrobnostiRačuna[])-ROW(PodrobnostiRačuna[#Headers])), ROW(4:4)), MATCH($F$8, PodrobnostiRačuna[#Headers], 0)),\"\")","v":0},{"v":280,"d":"280.00 €"}]
[null,{"$f":"IFERROR(INDEX(PodrobnostiRačuna[],SMALL(IF(PodrobnostiRačuna[Št. računa]=rngRačun,ROW(PodrobnostiRačuna[])-ROW(PodrobnostiRačuna[#Headers])), ROW(5:5)), MATCH($B$8, PodrobnostiRačuna[#Headers], 0)),\"\")","v":"Z4571"},{"$f":"IFERROR(INDEX(PodrobnostiRačuna[],SMALL(IF(PodrobnostiRačuna[Št. računa]=rngRačun,ROW(PodrobnostiRačuna[])-ROW(PodrobnostiRačuna[#Headers])), ROW(5:5)), MATCH($C$8, PodrobnostiRačuna[#Headers], 0)),\"\")","v":"Račun 3-456-2 Podatki 5"},{"$f":"IFERROR(INDEX(PodrobnostiRačuna[],SMALL(IF(PodrobnostiRačuna[Št. računa]=rngRačun,ROW(PodrobnostiRačuna[])-ROW(PodrobnostiRačuna[#Headers])), ROW(5:5)), MATCH($D$8, PodrobnostiRačuna[#Headers], 0)),\"\")","v":10},{"$f":"IFERROR(INDEX(PodrobnostiRačuna[],SMALL(IF(PodrobnostiRačuna[Št. računa]=rngRačun,ROW(PodrobnostiRačuna[])-ROW(PodrobnostiRačuna[#Headers])), ROW(5:5)), MATCH($E$8, PodrobnostiRačuna[#Headers], 0)),\"\")","v":{"v":4,"d":"4.00 €"}},{"$f":"IFERROR(INDEX(PodrobnostiRačuna[],SMALL(IF(PodrobnostiRačuna[Št. računa]=rngRačun,ROW(PodrobnostiRačuna[])-ROW(PodrobnostiRačuna[#Headers])), ROW(5:5)), MATCH($F$8, PodrobnostiRačuna[#Headers], 0)),\"\")","v":0},{"v":40,"d":"40.00 €"}]
[null,{"$f":"IFERROR(INDEX(PodrobnostiRačuna[],SMALL(IF(PodrobnostiRačuna[Št. računa]=rngRačun,ROW(PodrobnostiRačuna[])-ROW(PodrobnostiRačuna[#Headers])), ROW(6:6)), MATCH($B$8, PodrobnostiRačuna[#Headers], 0)),\"\")","v":"Z4572"},{"$f":"IFERROR(INDEX(PodrobnostiRačuna[],SMALL(IF(PodrobnostiRačuna[Št. računa]=rngRačun,ROW(PodrobnostiRačuna[])-ROW(PodrobnostiRačuna[#Headers])), ROW(6:6)), MATCH($C$8, PodrobnostiRačuna[#Headers], 0)),\"\")","v":"Račun 3-456-2 Podatki 6"},{"$f":"IFERROR(INDEX(PodrobnostiRačuna[],SMALL(IF(PodrobnostiRačuna[Št. računa]=rngRačun,ROW(PodrobnostiRačuna[])-ROW(PodrobnostiRačuna[#Headers])), ROW(6:6)), MATCH($D$8, PodrobnostiRačuna[#Headers], 0)),\"\")","v":5},{"$f":"IFERROR(INDEX(PodrobnostiRačuna[],SMALL(IF(PodrobnostiRačuna[Št. računa]=rngRačun,ROW(PodrobnostiRačuna[])-ROW(PodrobnostiRačuna[#Headers])), ROW(6:6)), MATCH($E$8, PodrobnostiRačuna[#Headers], 0)),\"\")","v":{"v":8,"d":"8.00 €"}},{"$f":"IFERROR(INDEX(PodrobnostiRačuna[],SMALL(IF(PodrobnostiRačuna[Št. računa]=rngRačun,ROW(PodrobnostiRačuna[])-ROW(PodrobnostiRačuna[#Headers])), ROW(6:6)), MATCH($F$8, PodrobnostiRačuna[#Headers], 0)),\"\")","v":0},{"v":40,"d":"40.00 €"}]
[null,{"$f":"IFERROR(INDEX(PodrobnostiRačuna[],SMALL(IF(PodrobnostiRačuna[Št. računa]=rngRačun,ROW(PodrobnostiRačuna[])-ROW(PodrobnostiRačuna[#Headers])), ROW(7:7)), MATCH($B$8, PodrobnostiRačuna[#Headers], 0)),\"\")","v":"Z4573"},{"$f":"IFERROR(INDEX(PodrobnostiRačuna[],SMALL(IF(PodrobnostiRačuna[Št. računa]=rngRačun,ROW(PodrobnostiRačuna[])-ROW(PodrobnostiRačuna[#Headers])), ROW(7:7)), MATCH($C$8, PodrobnostiRačuna[#Headers], 0)),\"\")","v":"Račun 3-456-2 Podatki 7"},{"$f":"IFERROR(INDEX(PodrobnostiRačuna[],SMALL(IF(PodrobnostiRačuna[Št. računa]=rngRačun,ROW(PodrobnostiRačuna[])-ROW(PodrobnostiRačuna[#Headers])), ROW(7:7)), MATCH($D$8, PodrobnostiRačuna[#Headers], 0)),\"\")","v":70},{"$f":"IFERROR(INDEX(PodrobnostiRačuna[],SMALL(IF(PodrobnostiRačuna[Št. računa]=rngRačun,ROW(PodrobnostiRačuna[])-ROW(PodrobnostiRačuna[#Headers])), ROW(7:7)), MATCH($E$8, PodrobnostiRačuna[#Headers], 0)),\"\")","v":{"v":6,"d":"6.00 €"}},{"$f":"IFERROR(INDEX(PodrobnostiRačuna[],SMALL(IF(PodrobnostiRačuna[Št. računa]=rngRačun,ROW(PodrobnostiRačuna[])-ROW(PodrobnostiRačuna[#Headers])), ROW(7:7)), MATCH($F$8, PodrobnostiRačuna[#Headers], 0)),\"\")","v":0},{"v":420,"d":"420.00 €"}]
[null,{"$f":"IFERROR(INDEX(PodrobnostiRačuna[],SMALL(IF(PodrobnostiRačuna[Št. računa]=rngRačun,ROW(PodrobnostiRačuna[])-ROW(PodrobnostiRačuna[#Headers])), ROW(8:8)), MATCH($B$8, PodrobnostiRačuna[#Headers], 0)),\"\")","v":"Z4574"},{"$f":"IFERROR(INDEX(PodrobnostiRačuna[],SMALL(IF(PodrobnostiRačuna[Št. računa]=rngRačun,ROW(PodrobnostiRačuna[])-ROW(PodrobnostiRačuna[#Headers])), ROW(8:8)), MATCH($C$8, PodrobnostiRačuna[#Headers], 0)),\"\")","v":"Račun 3-456-2 Podatki 8"},{"$f":"IFERROR(INDEX(PodrobnostiRačuna[],SMALL(IF(PodrobnostiRačuna[Št. računa]=rngRačun,ROW(PodrobnostiRačuna[])-ROW(PodrobnostiRačuna[#Headers])), ROW(8:8)), MATCH($D$8, PodrobnostiRačuna[#Headers], 0)),\"\")","v":25},{"$f":"IFERROR(INDEX(PodrobnostiRačuna[],SMALL(IF(PodrobnostiRačuna[Št. računa]=rngRačun,ROW(PodrobnostiRačuna[])-ROW(PodrobnostiRačuna[#Headers])), ROW(8:8)), MATCH($E$8, PodrobnostiRačuna[#Headers], 0)),\"\")","v":{"v":4,"d":"4.00 €"}},{"$f":"IFERROR(INDEX(PodrobnostiRačuna[],SMALL(IF(PodrobnostiRačuna[Št. računa]=rngRačun,ROW(PodrobnostiRačuna[])-ROW(PodrobnostiRačuna[#Headers])), ROW(8:8)), MATCH($F$8, PodrobnostiRačuna[#Headers], 0)),\"\")","v":0},{"v":100,"d":"100.00 €"}]
[null,{"$f":"IFERROR(INDEX(PodrobnostiRačuna[],SMALL(IF(PodrobnostiRačuna[Št. računa]=rngRačun,ROW(PodrobnostiRačuna[])-ROW(PodrobnostiRačuna[#Headers])), ROW(9:9)), MATCH($B$8, PodrobnostiRačuna[#Headers], 0)),\"\")","v":"Z4575"},{"$f":"IFERROR(INDEX(PodrobnostiRačuna[],SMALL(IF(PodrobnostiRačuna[Št. računa]=rngRačun,ROW(PodrobnostiRačuna[])-ROW(PodrobnostiRačuna[#Headers])), ROW(9:9)), MATCH($C$8, PodrobnostiRačuna[#Headers], 0)),\"\")","v":"Račun 3-456-2 Podatki 9"},{"$f":"IFERROR(INDEX(PodrobnostiRačuna[],SMALL(IF(PodrobnostiRačuna[Št. računa]=rngRačun,ROW(PodrobnostiRačuna[])-ROW(PodrobnostiRačuna[#Headers])), ROW(9:9)), MATCH($D$8, PodrobnostiRačuna[#Headers], 0)),\"\")","v":5},{"$f":"IFERROR(INDEX(PodrobnostiRačuna[],SMALL(IF(PodrobnostiRačuna[Št. računa]=rngRačun,ROW(PodrobnostiRačuna[])-ROW(PodrobnostiRačuna[#Headers])), ROW(9:9)), MATCH($E$8, PodrobnostiRačuna[#Headers], 0)),\"\")","v":{"v":7,"d":"7.00 €"}},{"$f":"IFERROR(INDEX(PodrobnostiRačuna[],SMALL(IF(PodrobnostiRačuna[Št. računa]=rngRačun,ROW(PodrobnostiRačuna[])-ROW(PodrobnostiRačuna[#Headers])), ROW(9:9)), MATCH($F$8, PodrobnostiRačuna[#Headers], 0)),\"\")","v":{"v":3,"d":"3.00 €"}},{"v":32,"d":"32.00 €"}]
[null,{"$f":"IFERROR(INDEX(PodrobnostiRačuna[],SMALL(IF(PodrobnostiRačuna[Št. računa]=rngRačun,ROW(PodrobnostiRačuna[])-ROW(PodrobnostiRačuna[#Headers])), ROW(10:10)), MATCH($B$8, PodrobnostiRačuna[#Headers], 0)),\"\")","v":"Z4576"},{"$f":"IFERROR(INDEX(PodrobnostiRačuna[],SMALL(IF(PodrobnostiRačuna[Št. računa]=rngRačun,ROW(PodrobnostiRačuna[])-ROW(PodrobnostiRačuna[#Headers])), ROW(10:10)), MATCH($C$8, PodrobnostiRačuna[#Headers], 0)),\"\")","v":"Račun 3-456-2 Podatki 10"},{"$f":"IFERROR(INDEX(PodrobnostiRačuna[],SMALL(IF(PodrobnostiRačuna[Št. računa]=rngRačun,ROW(PodrobnostiRačuna[])-ROW(PodrobnostiRačuna[#Headers])), ROW(10:10)), MATCH($D$8, PodrobnostiRačuna[#Headers], 0)),\"\")","v":80},{"$f":"IFERROR(INDEX(PodrobnostiRačuna[],SMALL(IF(PodrobnostiRačuna[Št. računa]=rngRačun,ROW(PodrobnostiRačuna[])-ROW(PodrobnostiRačuna[#Headers])), ROW(10:10)), MATCH($E$8, PodrobnostiRačuna[#Headers], 0)),\"\")","v":{"v":1,"d":"1.00 €"}},{"$f":"IFERROR(INDEX(PodrobnostiRačuna[],SMALL(IF(PodrobnostiRačuna[Št. računa]=rngRačun,ROW(PodrobnostiRačuna[])-ROW(PodrobnostiRačuna[#Headers])), ROW(10:10)), MATCH($F$8, PodrobnostiRačuna[#Headers], 0)),\"\")","v":0},{"v":80,"d":"80.00 €"}]
[null,{"$f":"IFERROR(INDEX(PodrobnostiRačuna[],SMALL(IF(PodrobnostiRačuna[Št. računa]=rngRačun,ROW(PodrobnostiRačuna[])-ROW(PodrobnostiRačuna[#Headers])), ROW(11:11)), MATCH($B$8, PodrobnostiRačuna[#Headers], 0)),\"\")","v":"Z4577"},{"$f":"IFERROR(INDEX(PodrobnostiRačuna[],SMALL(IF(PodrobnostiRačuna[Št. računa]=rngRačun,ROW(PodrobnostiRačuna[])-ROW(PodrobnostiRačuna[#Headers])), ROW(11:11)), MATCH($C$8, PodrobnostiRačuna[#Headers], 0)),\"\")","v":"Račun 3-456-2 Podatki 11"},{"$f":"IFERROR(INDEX(PodrobnostiRačuna[],SMALL(IF(PodrobnostiRačuna[Št. računa]=rngRačun,ROW(PodrobnostiRačuna[])-ROW(PodrobnostiRačuna[#Headers])), ROW(11:11)), MATCH($D$8, PodrobnostiRačuna[#Headers], 0)),\"\")","v":65},{"$f":"IFERROR(INDEX(PodrobnostiRačuna[],SMALL(IF(PodrobnostiRačuna[Št. računa]=rngRačun,ROW(PodrobnostiRačuna[])-ROW(PodrobnostiRačuna[#Headers])), ROW(11:11)), MATCH($E$8, PodrobnostiRačuna[#Headers], 0)),\"\")","v":{"v":7,"d":"7.00 €"}},{"$f":"IFERROR(INDEX(PodrobnostiRačuna[],SMALL(IF(PodrobnostiRačuna[Št. računa]=rngRačun,ROW(PodrobnostiRačuna[])-ROW(PodrobnostiRačuna[#Headers])), ROW(11:11)), MATCH($F$8, PodrobnostiRačuna[#Headers], 0)),\"\")","v":0},{"v":455,"d":"455.00 €"}]
[null,{"$f":"IFERROR(INDEX(PodrobnostiRačuna[],SMALL(IF(PodrobnostiRačuna[Št. računa]=rngRačun,ROW(PodrobnostiRačuna[])-ROW(PodrobnostiRačuna[#Headers])), ROW(12:12)), MATCH($B$8, PodrobnostiRačuna[#Headers], 0)),\"\")","v":"Z4578"},{"$f":"IFERROR(INDEX(PodrobnostiRačuna[],SMALL(IF(PodrobnostiRačuna[Št. računa]=rngRačun,ROW(PodrobnostiRačuna[])-ROW(PodrobnostiRačuna[#Headers])), ROW(12:12)), MATCH($C$8, PodrobnostiRačuna[#Headers], 0)),\"\")","v":"Račun 3-456-2 Podatki 12"},{"$f":"IFERROR(INDEX(PodrobnostiRačuna[],SMALL(IF(PodrobnostiRačuna[Št. računa]=rngRačun,ROW(PodrobnostiRačuna[])-ROW(PodrobnostiRačuna[#Headers])), ROW(12:12)), MATCH($D$8, PodrobnostiRačuna[#Headers], 0)),\"\")","v":44},{"$f":"IFERROR(INDEX(PodrobnostiRačuna[],SMALL(IF(PodrobnostiRačuna[Št. računa]=rngRačun,ROW(PodrobnostiRačuna[])-ROW(PodrobnostiRačuna[#Headers])), ROW(12:12)), MATCH($E$8, PodrobnostiRačuna[#Headers], 0)),\"\")","v":{"v":1,"d":"1.00 €"}},{"$f":"IFERROR(INDEX(PodrobnostiRačuna[],SMALL(IF(PodrobnostiRačuna[Št. računa]=rngRačun,ROW(PodrobnostiRačuna[])-ROW(PodrobnostiRačuna[#Headers])), ROW(12:12)), MATCH($F$8, PodrobnostiRačuna[#Headers], 0)),\"\")","v":0},{"v":44,"d":"44.00 €"}]
[null,{"$f":"IFERROR(INDEX(PodrobnostiRačuna[],SMALL(IF(PodrobnostiRačuna[Št. računa]=rngRačun,ROW(PodrobnostiRačuna[])-ROW(PodrobnostiRačuna[#Headers])), ROW(13:13)), MATCH($B$8, PodrobnostiRačuna[#Headers], 0)),\"\")","v":""},{"$f":"IFERROR(INDEX(PodrobnostiRačuna[],SMALL(IF(PodrobnostiRačuna[Št. računa]=rngRačun,ROW(PodrobnostiRačuna[])-ROW(PodrobnostiRačuna[#Headers])), ROW(13:13)), MATCH($C$8, PodrobnostiRačuna[#Headers], 0)),\"\")","v":""},{"$f":"IFERROR(INDEX(PodrobnostiRačuna[],SMALL(IF(PodrobnostiRačuna[Št. računa]=rngRačun,ROW(PodrobnostiRačuna[])-ROW(PodrobnostiRačuna[#Headers])), ROW(13:13)), MATCH($D$8, PodrobnostiRačuna[#Headers], 0)),\"\")","v":""},{"$f":"IFERROR(INDEX(PodrobnostiRačuna[],SMALL(IF(PodrobnostiRačuna[Št. računa]=rngRačun,ROW(PodrobnostiRačuna[])-ROW(PodrobnostiRačuna[#Headers])), ROW(13:13)), MATCH($E$8, PodrobnostiRačuna[#Headers], 0)),\"\")","v":""},{"$f":"IFERROR(INDEX(PodrobnostiRačuna[],SMALL(IF(PodrobnostiRačuna[Št. računa]=rngRačun,ROW(PodrobnostiRačuna[])-ROW(PodrobnostiRačuna[#Headers])), ROW(13:13)), MATCH($F$8, PodrobnostiRačuna[#Headers], 0)),\"\")","v":""},""]
[null,{"$f":"IFERROR(INDEX(PodrobnostiRačuna[],SMALL(IF(PodrobnostiRačuna[Št. računa]=rngRačun,ROW(PodrobnostiRačuna[])-ROW(PodrobnostiRačuna[#Headers])), ROW(14:14)), MATCH($B$8, PodrobnostiRačuna[#Headers], 0)),\"\")","v":""},{"$f":"IFERROR(INDEX(PodrobnostiRačuna[],SMALL(IF(PodrobnostiRačuna[Št. računa]=rngRačun,ROW(PodrobnostiRačuna[])-ROW(PodrobnostiRačuna[#Headers])), ROW(14:14)), MATCH($C$8, PodrobnostiRačuna[#Headers], 0)),\"\")","v":""},{"$f":"IFERROR(INDEX(PodrobnostiRačuna[],SMALL(IF(PodrobnostiRačuna[Št. računa]=rngRačun,ROW(PodrobnostiRačuna[])-ROW(PodrobnostiRačuna[#Headers])), ROW(14:14)), MATCH($D$8, PodrobnostiRačuna[#Headers], 0)),\"\")","v":""},{"$f":"IFERROR(INDEX(PodrobnostiRačuna[],SMALL(IF(PodrobnostiRačuna[Št. računa]=rngRačun,ROW(PodrobnostiRačuna[])-ROW(PodrobnostiRačuna[#Headers])), ROW(14:14)), MATCH($E$8, PodrobnostiRačuna[#Headers], 0)),\"\")","v":""},{"$f":"IFERROR(INDEX(PodrobnostiRačuna[],SMALL(IF(PodrobnostiRačuna[Št. računa]=rngRačun,ROW(PodrobnostiRačuna[])-ROW(PodrobnostiRačuna[#Headers])), ROW(14:14)), MATCH($F$8, PodrobnostiRačuna[#Headers], 0)),\"\")","v":""},""]
[null,{"$f":"IFERROR(INDEX(PodrobnostiRačuna[],SMALL(IF(PodrobnostiRačuna[Št. računa]=rngRačun,ROW(PodrobnostiRačuna[])-ROW(PodrobnostiRačuna[#Headers])), ROW(15:15)), MATCH($B$8, PodrobnostiRačuna[#Headers], 0)),\"\")","v":""},{"$f":"IFERROR(INDEX(PodrobnostiRačuna[],SMALL(IF(PodrobnostiRačuna[Št. računa]=rngRačun,ROW(PodrobnostiRačuna[])-ROW(PodrobnostiRačuna[#Headers])), ROW(15:15)), MATCH($C$8, PodrobnostiRačuna[#Headers], 0)),\"\")","v":""},{"$f":"IFERROR(INDEX(PodrobnostiRačuna[],SMALL(IF(PodrobnostiRačuna[Št. računa]=rngRačun,ROW(PodrobnostiRačuna[])-ROW(PodrobnostiRačuna[#Headers])), ROW(15:15)), MATCH($D$8, PodrobnostiRačuna[#Headers], 0)),\"\")","v":""},{"$f":"IFERROR(INDEX(PodrobnostiRačuna[],SMALL(IF(PodrobnostiRačuna[Št. računa]=rngRačun,ROW(PodrobnostiRačuna[])-ROW(PodrobnostiRačuna[#Headers])), ROW(15:15)), MATCH($E$8, PodrobnostiRačuna[#Headers], 0)),\"\")","v":""},{"$f":"IFERROR(INDEX(PodrobnostiRačuna[],SMALL(IF(PodrobnostiRačuna[Št. računa]=rngRačun,ROW(PodrobnostiRačuna[])-ROW(PodrobnostiRačuna[#Headers])), ROW(15:15)), MATCH($F$8, PodrobnostiRačuna[#Headers], 0)),\"\")","v":""},""]
[null,{"$f":"IFERROR(INDEX(PodrobnostiRačuna[],SMALL(IF(PodrobnostiRačuna[Št. računa]=rngRačun,ROW(PodrobnostiRačuna[])-ROW(PodrobnostiRačuna[#Headers])), ROW(16:16)), MATCH($B$8, PodrobnostiRačuna[#Headers], 0)),\"\")","v":""},{"$f":"IFERROR(INDEX(PodrobnostiRačuna[],SMALL(IF(PodrobnostiRačuna[Št. računa]=rngRačun,ROW(PodrobnostiRačuna[])-ROW(PodrobnostiRačuna[#Headers])), ROW(16:16)), MATCH($C$8, PodrobnostiRačuna[#Headers], 0)),\"\")","v":""},{"$f":"IFERROR(INDEX(PodrobnostiRačuna[],SMALL(IF(PodrobnostiRačuna[Št. računa]=rngRačun,ROW(PodrobnostiRačuna[])-ROW(PodrobnostiRačuna[#Headers])), ROW(16:16)), MATCH($D$8, PodrobnostiRačuna[#Headers], 0)),\"\")","v":""},{"$f":"IFERROR(INDEX(PodrobnostiRačuna[],SMALL(IF(PodrobnostiRačuna[Št. računa]=rngRačun,ROW(PodrobnostiRačuna[])-ROW(PodrobnostiRačuna[#Headers])), ROW(16:16)), MATCH($E$8, PodrobnostiRačuna[#Headers], 0)),\"\")","v":""},{"$f":"IFERROR(INDEX(PodrobnostiRačuna[],SMALL(IF(PodrobnostiRačuna[Št. računa]=rngRačun,ROW(PodrobnostiRačuna[])-ROW(PodrobnostiRačuna[#Headers])), ROW(16:16)), MATCH($F$8, PodrobnostiRačuna[#Headers], 0)),\"\")","v":""},""]
[null,{"$f":"IFERROR(INDEX(PodrobnostiRačuna[],SMALL(IF(PodrobnostiRačuna[Št. računa]=rngRačun,ROW(PodrobnostiRačuna[])-ROW(PodrobnostiRačuna[#Headers])), ROW(17:17)), MATCH($B$8, PodrobnostiRačuna[#Headers], 0)),\"\")","v":""},{"$f":"IFERROR(INDEX(PodrobnostiRačuna[],SMALL(IF(PodrobnostiRačuna[Št. računa]=rngRačun,ROW(PodrobnostiRačuna[])-ROW(PodrobnostiRačuna[#Headers])), ROW(17:17)), MATCH($C$8, PodrobnostiRačuna[#Headers], 0)),\"\")","v":""},{"$f":"IFERROR(INDEX(PodrobnostiRačuna[],SMALL(IF(PodrobnostiRačuna[Št. računa]=rngRačun,ROW(PodrobnostiRačuna[])-ROW(PodrobnostiRačuna[#Headers])), ROW(17:17)), MATCH($D$8, PodrobnostiRačuna[#Headers], 0)),\"\")","v":""},{"$f":"IFERROR(INDEX(PodrobnostiRačuna[],SMALL(IF(PodrobnostiRačuna[Št. računa]=rngRačun,ROW(PodrobnostiRačuna[])-ROW(PodrobnostiRačuna[#Headers])), ROW(17:17)), MATCH($E$8, PodrobnostiRačuna[#Headers], 0)),\"\")","v":""},{"$f":"IFERROR(INDEX(PodrobnostiRačuna[],SMALL(IF(PodrobnostiRačuna[Št. računa]=rngRačun,ROW(PodrobnostiRačuna[])-ROW(PodrobnostiRačuna[#Headers])), ROW(17:17)), MATCH($F$8, PodrobnostiRačuna[#Headers], 0)),\"\")","v":""},""]
[null,{"$f":"IFERROR(INDEX(PodrobnostiRačuna[],SMALL(IF(PodrobnostiRačuna[Št. računa]=rngRačun,ROW(PodrobnostiRačuna[])-ROW(PodrobnostiRačuna[#Headers])), ROW(18:18)), MATCH($B$8, PodrobnostiRačuna[#Headers], 0)),\"\")","v":""},{"$f":"IFERROR(INDEX(PodrobnostiRačuna[],SMALL(IF(PodrobnostiRačuna[Št. računa]=rngRačun,ROW(PodrobnostiRačuna[])-ROW(PodrobnostiRačuna[#Headers])), ROW(18:18)), MATCH($C$8, PodrobnostiRačuna[#Headers], 0)),\"\")","v":""},{"$f":"IFERROR(INDEX(PodrobnostiRačuna[],SMALL(IF(PodrobnostiRačuna[Št. računa]=rngRačun,ROW(PodrobnostiRačuna[])-ROW(PodrobnostiRačuna[#Headers])), ROW(18:18)), MATCH($D$8, PodrobnostiRačuna[#Headers], 0)),\"\")","v":""},{"$f":"IFERROR(INDEX(PodrobnostiRačuna[],SMALL(IF(PodrobnostiRačuna[Št. računa]=rngRačun,ROW(PodrobnostiRačuna[])-ROW(PodrobnostiRačuna[#Headers])), ROW(18:18)), MATCH($E$8, PodrobnostiRačuna[#Headers], 0)),\"\")","v":""},{"$f":"IFERROR(INDEX(PodrobnostiRačuna[],SMALL(IF(PodrobnostiRačuna[Št. računa]=rngRačun,ROW(PodrobnostiRačuna[])-ROW(PodrobnostiRačuna[#Headers])), ROW(18:18)), MATCH($F$8, PodrobnostiRačuna[#Headers], 0)),\"\")","v":""},""]
[null,{"$f":"IFERROR(INDEX(PodrobnostiRačuna[],SMALL(IF(PodrobnostiRačuna[Št. računa]=rngRačun,ROW(PodrobnostiRačuna[])-ROW(PodrobnostiRačuna[#Headers])), ROW(19:19)), MATCH($B$8, PodrobnostiRačuna[#Headers], 0)),\"\")","v":""},{"$f":"IFERROR(INDEX(PodrobnostiRačuna[],SMALL(IF(PodrobnostiRačuna[Št. računa]=rngRačun,ROW(PodrobnostiRačuna[])-ROW(PodrobnostiRačuna[#Headers])), ROW(19:19)), MATCH($C$8, PodrobnostiRačuna[#Headers], 0)),\"\")","v":""},{"$f":"IFERROR(INDEX(PodrobnostiRačuna[],SMALL(IF(PodrobnostiRačuna[Št. računa]=rngRačun,ROW(PodrobnostiRačuna[])-ROW(PodrobnostiRačuna[#Headers])), ROW(19:19)), MATCH($D$8, PodrobnostiRačuna[#Headers], 0)),\"\")","v":""},{"$f":"IFERROR(INDEX(PodrobnostiRačuna[],SMALL(IF(PodrobnostiRačuna[Št. računa]=rngRačun,ROW(PodrobnostiRačuna[])-ROW(PodrobnostiRačuna[#Headers])), ROW(19:19)), MATCH($E$8, PodrobnostiRačuna[#Headers], 0)),\"\")","v":""},{"$f":"IFERROR(INDEX(PodrobnostiRačuna[],SMALL(IF(PodrobnostiRačuna[Št. računa]=rngRačun,ROW(PodrobnostiRačuna[])-ROW(PodrobnostiRačuna[#Headers])), ROW(19:19)), MATCH($F$8, PodrobnostiRačuna[#Headers], 0)),\"\")","v":""},""]
[null,{"$f":"IFERROR(INDEX(PodrobnostiRačuna[],SMALL(IF(PodrobnostiRačuna[Št. računa]=rngRačun,ROW(PodrobnostiRačuna[])-ROW(PodrobnostiRačuna[#Headers])), ROW(20:20)), MATCH($B$8, PodrobnostiRačuna[#Headers], 0)),\"\")","v":""},{"$f":"IFERROR(INDEX(PodrobnostiRačuna[],SMALL(IF(PodrobnostiRačuna[Št. računa]=rngRačun,ROW(PodrobnostiRačuna[])-ROW(PodrobnostiRačuna[#Headers])), ROW(20:20)), MATCH($C$8, PodrobnostiRačuna[#Headers], 0)),\"\")","v":""},{"$f":"IFERROR(INDEX(PodrobnostiRačuna[],SMALL(IF(PodrobnostiRačuna[Št. računa]=rngRačun,ROW(PodrobnostiRačuna[])-ROW(PodrobnostiRačuna[#Headers])), ROW(20:20)), MATCH($D$8, PodrobnostiRačuna[#Headers], 0)),\"\")","v":""},{"$f":"IFERROR(INDEX(PodrobnostiRačuna[],SMALL(IF(PodrobnostiRačuna[Št. računa]=rngRačun,ROW(PodrobnostiRačuna[])-ROW(PodrobnostiRačuna[#Headers])), ROW(20:20)), MATCH($E$8, PodrobnostiRačuna[#Headers], 0)),\"\")","v":""},{"$f":"IFERROR(INDEX(PodrobnostiRačuna[],SMALL(IF(PodrobnostiRačuna[Št. računa]=rngRačun,ROW(PodrobnostiRačuna[])-ROW(PodrobnostiRačuna[#Headers])), ROW(20:20)), MATCH($F$8, PodrobnostiRačuna[#Headers], 0)),\"\")","v":""},""]
[null,{"$f":"IFERROR(INDEX(PodrobnostiRačuna[],SMALL(IF(PodrobnostiRačuna[Št. računa]=rngRačun,ROW(PodrobnostiRačuna[])-ROW(PodrobnostiRačuna[#Headers])), ROW(21:21)), MATCH($B$8, PodrobnostiRačuna[#Headers], 0)),\"\")","v":""},{"$f":"IFERROR(INDEX(PodrobnostiRačuna[],SMALL(IF(PodrobnostiRačuna[Št. računa]=rngRačun,ROW(PodrobnostiRačuna[])-ROW(PodrobnostiRačuna[#Headers])), ROW(21:21)), MATCH($C$8, PodrobnostiRačuna[#Headers], 0)),\"\")","v":""},{"$f":"IFERROR(INDEX(PodrobnostiRačuna[],SMALL(IF(PodrobnostiRačuna[Št. računa]=rngRačun,ROW(PodrobnostiRačuna[])-ROW(PodrobnostiRačuna[#Headers])), ROW(21:21)), MATCH($D$8, PodrobnostiRačuna[#Headers], 0)),\"\")","v":""},{"$f":"IFERROR(INDEX(PodrobnostiRačuna[],SMALL(IF(PodrobnostiRačuna[Št. računa]=rngRačun,ROW(PodrobnostiRačuna[])-ROW(PodrobnostiRačuna[#Headers])), ROW(21:21)), MATCH($E$8, PodrobnostiRačuna[#Headers], 0)),\"\")","v":""},{"$f":"IFERROR(INDEX(PodrobnostiRačuna[],SMALL(IF(PodrobnostiRačuna[Št. računa]=rngRačun,ROW(PodrobnostiRačuna[])-ROW(PodrobnostiRačuna[#Headers])), ROW(21:21)), MATCH($F$8, PodrobnostiRačuna[#Headers], 0)),\"\")","v":""},""]
[null,{"$f":"IFERROR(INDEX(PodrobnostiRačuna[],SMALL(IF(PodrobnostiRačuna[Št. računa]=rngRačun,ROW(PodrobnostiRačuna[])-ROW(PodrobnostiRačuna[#Headers])), ROW(22:22)), MATCH($B$8, PodrobnostiRačuna[#Headers], 0)),\"\")","v":""},{"$f":"IFERROR(INDEX(PodrobnostiRačuna[],SMALL(IF(PodrobnostiRačuna[Št. računa]=rngRačun,ROW(PodrobnostiRačuna[])-ROW(PodrobnostiRačuna[#Headers])), ROW(22:22)), MATCH($C$8, PodrobnostiRačuna[#Headers], 0)),\"\")","v":""},{"$f":"IFERROR(INDEX(PodrobnostiRačuna[],SMALL(IF(PodrobnostiRačuna[Št. računa]=rngRačun,ROW(PodrobnostiRačuna[])-ROW(PodrobnostiRačuna[#Headers])), ROW(22:22)), MATCH($D$8, PodrobnostiRačuna[#Headers], 0)),\"\")","v":""},{"$f":"IFERROR(INDEX(PodrobnostiRačuna[],SMALL(IF(PodrobnostiRačuna[Št. računa]=rngRačun,ROW(PodrobnostiRačuna[])-ROW(PodrobnostiRačuna[#Headers])), ROW(22:22)), MATCH($E$8, PodrobnostiRačuna[#Headers], 0)),\"\")","v":""},{"$f":"IFERROR(INDEX(PodrobnostiRačuna[],SMALL(IF(PodrobnostiRačuna[Št. računa]=rngRačun,ROW(PodrobnostiRačuna[])-ROW(PodrobnostiRačuna[#Headers])), ROW(22:22)), MATCH($F$8, PodrobnostiRačuna[#Headers], 0)),\"\")","v":""},""]
[null,{"$f":"IFERROR(INDEX(PodrobnostiRačuna[],SMALL(IF(PodrobnostiRačuna[Št. računa]=rngRačun,ROW(PodrobnostiRačuna[])-ROW(PodrobnostiRačuna[#Headers])), ROW(23:23)), MATCH($B$8, PodrobnostiRačuna[#Headers], 0)),\"\")","v":""},{"$f":"IFERROR(INDEX(PodrobnostiRačuna[],SMALL(IF(PodrobnostiRačuna[Št. računa]=rngRačun,ROW(PodrobnostiRačuna[])-ROW(PodrobnostiRačuna[#Headers])), ROW(23:23)), MATCH($C$8, PodrobnostiRačuna[#Headers], 0)),\"\")","v":""},{"$f":"IFERROR(INDEX(PodrobnostiRačuna[],SMALL(IF(PodrobnostiRačuna[Št. računa]=rngRačun,ROW(PodrobnostiRačuna[])-ROW(PodrobnostiRačuna[#Headers])), ROW(23:23)), MATCH($D$8, PodrobnostiRačuna[#Headers], 0)),\"\")","v":""},{"$f":"IFERROR(INDEX(PodrobnostiRačuna[],SMALL(IF(PodrobnostiRačuna[Št. računa]=rngRačun,ROW(PodrobnostiRačuna[])-ROW(PodrobnostiRačuna[#Headers])), ROW(23:23)), MATCH($E$8, PodrobnostiRačuna[#Headers], 0)),\"\")","v":""},{"$f":"IFERROR(INDEX(PodrobnostiRačuna[],SMALL(IF(PodrobnostiRačuna[Št. računa]=rngRačun,ROW(PodrobnostiRačuna[])-ROW(PodrobnostiRačuna[#Headers])), ROW(23:23)), MATCH($F$8, PodrobnostiRačuna[#Headers], 0)),\"\")","v":""},""]
[null,{"$f":"IFERROR(INDEX(PodrobnostiRačuna[],SMALL(IF(PodrobnostiRačuna[Št. računa]=rngRačun,ROW(PodrobnostiRačuna[])-ROW(PodrobnostiRačuna[#Headers])), ROW(24:24)), MATCH($B$8, PodrobnostiRačuna[#Headers], 0)),\"\")","v":""},{"$f":"IFERROR(INDEX(PodrobnostiRačuna[],SMALL(IF(PodrobnostiRačuna[Št. računa]=rngRačun,ROW(PodrobnostiRačuna[])-ROW(PodrobnostiRačuna[#Headers])), ROW(24:24)), MATCH($C$8, PodrobnostiRačuna[#Headers], 0)),\"\")","v":""},{"$f":"IFERROR(INDEX(PodrobnostiRačuna[],SMALL(IF(PodrobnostiRačuna[Št. računa]=rngRačun,ROW(PodrobnostiRačuna[])-ROW(PodrobnostiRačuna[#Headers])), ROW(24:24)), MATCH($D$8, PodrobnostiRačuna[#Headers], 0)),\"\")","v":""},{"$f":"IFERROR(INDEX(PodrobnostiRačuna[],SMALL(IF(PodrobnostiRačuna[Št. računa]=rngRačun,ROW(PodrobnostiRačuna[])-ROW(PodrobnostiRačuna[#Headers])), ROW(24:24)), MATCH($E$8, PodrobnostiRačuna[#Headers], 0)),\"\")","v":""},{"$f":"IFERROR(INDEX(PodrobnostiRačuna[],SMALL(IF(PodrobnostiRačuna[Št. računa]=rngRačun,ROW(PodrobnostiRačuna[])-ROW(PodrobnostiRačuna[#Headers])), ROW(24:24)), MATCH($F$8, PodrobnostiRačuna[#Headers], 0)),\"\")","v":""},""]
[null,{"$f":"IFERROR(INDEX(PodrobnostiRačuna[],SMALL(IF(PodrobnostiRačuna[Št. računa]=rngRačun,ROW(PodrobnostiRačuna[])-ROW(PodrobnostiRačuna[#Headers])), ROW(25:25)), MATCH($B$8, PodrobnostiRačuna[#Headers], 0)),\"\")","v":""},{"$f":"IFERROR(INDEX(PodrobnostiRačuna[],SMALL(IF(PodrobnostiRačuna[Št. računa]=rngRačun,ROW(PodrobnostiRačuna[])-ROW(PodrobnostiRačuna[#Headers])), ROW(25:25)), MATCH($C$8, PodrobnostiRačuna[#Headers], 0)),\"\")","v":""},{"$f":"IFERROR(INDEX(PodrobnostiRačuna[],SMALL(IF(PodrobnostiRačuna[Št. računa]=rngRačun,ROW(PodrobnostiRačuna[])-ROW(PodrobnostiRačuna[#Headers])), ROW(25:25)), MATCH($D$8, PodrobnostiRačuna[#Headers], 0)),\"\")","v":""},{"$f":"IFERROR(INDEX(PodrobnostiRačuna[],SMALL(IF(PodrobnostiRačuna[Št. računa]=rngRačun,ROW(PodrobnostiRačuna[])-ROW(PodrobnostiRačuna[#Headers])), ROW(25:25)), MATCH($E$8, PodrobnostiRačuna[#Headers], 0)),\"\")","v":""},{"$f":"IFERROR(INDEX(PodrobnostiRačuna[],SMALL(IF(PodrobnostiRačuna[Št. računa]=rngRačun,ROW(PodrobnostiRačuna[])-ROW(PodrobnostiRačuna[#Headers])), ROW(25:25)), MATCH($F$8, PodrobnostiRačuna[#Headers], 0)),\"\")","v":""},""]
[{"$nulls":5},"Delna vsota računa",{"$f":"SUM(RačunProjekta[Cena])","v":{"v":2014,"d":"2,014.00 €"}}]
[{"$nulls":5},"Davčna stopnja",{"$f":"VLOOKUP(rngRačun,RačuniGlavni[],5)","v":{"v":0.0875,"d":"8.75%"}}]
[{"$nulls":5},"Prometni davek",{"$f":"G34*G35","v":{"v":176.225,"d":"176.23 €"}}]
[{"$nulls":5},"Drugo",{"$f":"VLOOKUP(rngRačun,RačuniGlavni[],6)","v":0}]
[null,{"$f":"\"Vsi čeki naj bodo izstavljeni na \"&ImePodjetja&\".\"","v":"Vsi čeki naj bodo izstavljeni na Ime podjetja."},{"$nulls":3},"Prejeto predplačilo",{"$f":"VLOOKUP(rngRačun,RačuniGlavni[],7)","v":0}]
[null,"Rok plačila skupnega zneska čez toliko dni: <#>. Pridržujemo si pravico, da zapadlim računom dodamo strošek storitve, ki znaša <#> % na mesec.",{"$nulls":3},"VSOTA",{"$f":"(G34+G36+G37)-G38","v":{"v":2190.225,"d":"2,190.23 €"}}]

{"sheet":"Stranke","index":1,"n_rows":6,"n_cols":12,"rows_kept":6}
[]
[null,null,"Stranke"]
[null,"Iskanje","Podjetje #","Ime podjetja","Ime stika","Naslov","Mesto","Država","Poštna številka","Telefonska številka","E-poštni naslov","Faks"]
[null,{"$f":"C4& \" - \"&D4","v":"1 - Tailspin Toys "},1,"Tailspin Toys ","Robert Lyon","Vzorčna ulica 22","Maribor","Slo","123456","432-555-0178","nekdo@example.com","432-555-0187"]
[null,"2 - Contoso, Ltd",2,"Contoso, Ltd","Sanjay Patel","Cvetlična cesta 123","Celje","Slo","098765","432-555-0189","nekdo@example.com","432-555-0123"]
[null,"Vsote",{"$f":"\"Skupaj stranke: \"&SUBTOTAL(103,SeznamStrank[Podjetje '#])","v":"Skupaj stranke: 2"}]

{"sheet":"Računi – glavni","index":2,"n_rows":6,"n_cols":11,"rows_kept":6}
[]
[null,"Računi"]
[null,"Št. računa","Podjetje","Datum računa","Opis projekta","Davčna stopnja","Drugo","Polog","Skupaj s podrobnostmi","Skupni znesek računa","Opombe"]
[null,"3-456-1","1 - Tailspin Toys ",{"$f":"TODAY()","v":"2019-07-29"},"Projekt 1",{"v":0.0875,"d":"8.75%"},{"v":100,"d":"100.00 €"},{"v":100,"d":"100.00 €"},{"$f":"SUMIF(PodrobnostiRačuna[Št. računa],\"=\"&RačuniGlavni[[#This Row],[Št. računa]],PodrobnostiRačuna[Vsota])","v":{"v":5200,"d":"5,200.00 €"}},{"$f":"(RačuniGlavni[[#This Row],[Skupaj s podrobnostmi]]*(1+RačuniGlavni[[#This Row],[Davčna stopnja]]))+RačuniGlavni[[#This Row],[Drugo]]-RačuniGlavni[[#This Row],[Polog]]","v":{"v":5654.999999999999,"d":"5,655.00 €"}}]
[null,"3-456-2","2 - Contoso, Ltd",{"$f":"TODAY()+10","v":"2019-08-08"},"Projekt 2",{"v":0.0875,"d":"8.75%"},null,null,{"$f":"SUMIF(PodrobnostiRačuna[Št. računa],\"=\"&RačuniGlavni[[#This Row],[Št. računa]],PodrobnostiRačuna[Vsota])","v":{"v":2014,"d":"2,014.00 €"}},{"$f":"(RačuniGlavni[[#This Row],[Skupaj s podrobnostmi]]*(1+RačuniGlavni[[#This Row],[Davčna stopnja]]))+RačuniGlavni[[#This Row],[Drugo]]-RačuniGlavni[[#This Row],[Polog]]","v":{"v":2190.225,"d":"2,190.23 €"}}]
[null,"Vsote",{"$f":"\"Skupno število računov: \"&SUBTOTAL(103,RačuniGlavni[Št. računa])","v":"Skupno število računov: 2"},{"$nulls":3},{"$f":"SUBTOTAL(109,RačuniGlavni[Drugo])","v":{"v":100,"d":"100.00 €"}},{"$f":"SUBTOTAL(109,RačuniGlavni[Polog])","v":{"v":100,"d":"100.00 €"}},{"$f":"SUBTOTAL(109,RačuniGlavni[Skupaj s podrobnostmi])","v":{"v":7214,"d":"7,214.00 €"}},{"$f":"SUBTOTAL(109,RačuniGlavni[Skupni znesek računa])","v":{"v":7845.2249999999985,"d":"7,845.23 €"}}]

{"sheet":"Podrobnosti računa","index":3,"n_rows":40,"n_cols":8,"rows_kept":40}
[]
[null,"Podrobnosti računa"]
[null,"Opis","Št. računa","Št. elementa","Količina","Cena enote","Popust","Vsota"]
[null,"Račun 3-456-1 Podatki 1","3-456-1",1,1,{"v":1,"d":"1.00 €"},{"v":1,"d":"1.00 €"},{"$f":"(PodrobnostiRačuna[[#This Row],[Količina]]*PodrobnostiRačuna[[#This Row],[Cena enote]])-PodrobnostiRačuna[[#This Row],[Popust]]","v":{"v":0,"d":"0.00 €"}}]
[null,"Račun 3-456-1 Podatki 2","3-456-1",2,2,{"v":2,"d":"2.00 €"},{"v":2,"d":"2.00 €"},{"$f":"(PodrobnostiRačuna[[#This Row],[Količina]]*PodrobnostiRačuna[[#This Row],[Cena enote]])-PodrobnostiRačuna[[#This Row],[Popust]]","v":{"v":2,"d":"2.00 €"}}]
[null,"Račun 3-456-1 Podatki 3","3-456-1",3,3,{"v":3,"d":"3.00 €"},{"v":3,"d":"3.00 €"},{"$f":"(PodrobnostiRačuna[[#This Row],[Količina]]*PodrobnostiRačuna[[#This Row],[Cena enote]])-PodrobnostiRačuna[[#This Row],[Popust]]","v":{"v":6,"d":"6.00 €"}}]
[null,"Račun 3-456-1 Podatki 4","3-456-1",4,4,{"v":4,"d":"4.00 €"},{"v":4,"d":"4.00 €"},{"$f":"(PodrobnostiRačuna[[#This Row],[Količina]]*PodrobnostiRačuna[[#This Row],[Cena enote]])-PodrobnostiRačuna[[#This Row],[Popust]]","v":{"v":12,"d":"12.00 €"}}]
[null,"Račun 3-456-1 Podatki 5","3-456-1",5,5,{"v":5,"d":"5.00 €"},{"v":5,"d":"5.00 €"},{"$f":"(PodrobnostiRačuna[[#This Row],[Količina]]*PodrobnostiRačuna[[#This Row],[Cena enote]])-PodrobnostiRačuna[[#This Row],[Popust]]","v":{"v":20,"d":"20.00 €"}}]
[null,"Račun 3-456-1 Podatki 6","3-456-1",6,6,{"v":6,"d":"6.00 €"},{"v":6,"d":"6.00 €"},{"$f":"(PodrobnostiRačuna[[#This Row],[Količina]]*PodrobnostiRačuna[[#This Row],[Cena enote]])-PodrobnostiRačuna[[#This Row],[Popust]]","v":{"v":30,"d":"30.00 €"}}]
[null,"Račun 3-456-1 Podatki 7","3-456-1",7,7,{"v":7,"d":"7.00 €"},{"v":7,"d":"7.00 €"},{"$f":"(PodrobnostiRačuna[[#This Row],[Količina]]*PodrobnostiRačuna[[#This Row],[Cena enote]])-PodrobnostiRačuna[[#This Row],[Popust]]","v":{"v":42,"d":"42.00 €"}}]
[null,"Račun 3-456-1 Podatki 8","3-456-1",8,8,{"v":8,"d":"8.00 €"},{"v":8,"d":"8.00 €"},{"$f":"(PodrobnostiRačuna[[#This Row],[Količina]]*PodrobnostiRačuna[[#This Row],[Cena enote]])-PodrobnostiRačuna[[#This Row],[Popust]]","v":{"v":56,"d":"56.00 €"}}]
[null,"Račun 3-456-1 Podatki 9","3-456-1",9,9,{"v":9,"d":"9.00 €"},{"v":9,"d":"9.00 €"},{"$f":"(PodrobnostiRačuna[[#This Row],[Količina]]*PodrobnostiRačuna[[#This Row],[Cena enote]])-PodrobnostiRačuna[[#This Row],[Popust]]","v":{"v":72,"d":"72.00 €"}}]
[null,"Račun 3-456-1 Podatki 10","3-456-1",10,10,{"v":10,"d":"10.00 €"},{"v":10,"d":"10.00 €"},{"$f":"(PodrobnostiRačuna[[#This Row],[Količina]]*PodrobnostiRačuna[[#This Row],[Cena enote]])-PodrobnostiRačuna[[#This Row],[Popust]]","v":{"v":90,"d":"90.00 €"}}]
[null,"Račun 3-456-1 Podatki 11","3-456-1",11,11,{"v":11,"d":"11.00 €"},{"v":11,"d":"11.00 €"},{"$f":"(PodrobnostiRačuna[[#This Row],[Količina]]*PodrobnostiRačuna[[#This Row],[Cena enote]])-PodrobnostiRačuna[[#This Row],[Popust]]","v":{"v":110,"d":"110.00 €"}}]
[null,"Račun 3-456-1 Podatki 12","3-456-1",12,12,{"v":12,"d":"12.00 €"},{"v":12,"d":"12.00 €"},{"$f":"(PodrobnostiRačuna[[#This Row],[Količina]]*PodrobnostiRačuna[[#This Row],[Cena enote]])-PodrobnostiRačuna[[#This Row],[Popust]]","v":{"v":132,"d":"132.00 €"}}]
[null,"Račun 3-456-1 Podatki 13","3-456-1",13,13,{"v":13,"d":"13.00 €"},{"v":13,"d":"13.00 €"},{"$f":"(PodrobnostiRačuna[[#This Row],[Količina]]*PodrobnostiRačuna[[#This Row],[Cena enote]])-PodrobnostiRačuna[[#This Row],[Popust]]","v":{"v":156,"d":"156.00 €"}}]
[null,"Račun 3-456-1 Podatki 14","3-456-1",14,14,{"v":14,"d":"14.00 €"},{"v":14,"d":"14.00 €"},{"$f":"(PodrobnostiRačuna[[#This Row],[Količina]]*PodrobnostiRačuna[[#This Row],[Cena enote]])-PodrobnostiRačuna[[#This Row],[Popust]]","v":{"v":182,"d":"182.00 €"}}]
[null,"Račun 3-456-1 Podatki 15","3-456-1",15,15,{"v":15,"d":"15.00 €"},{"v":15,"d":"15.00 €"},{"$f":"(PodrobnostiRačuna[[#This Row],[Količina]]*PodrobnostiRačuna[[#This Row],[Cena enote]])-PodrobnostiRačuna[[#This Row],[Popust]]","v":{"v":210,"d":"210.00 €"}}]
[null,"Račun 3-456-1 Podatki 16","3-456-1",16,16,{"v":16,"d":"16.00 €"},{"v":16,"d":"16.00 €"},{"$f":"(PodrobnostiRačuna[[#This Row],[Količina]]*PodrobnostiRačuna[[#This Row],[Cena enote]])-PodrobnostiRačuna[[#This Row],[Popust]]","v":{"v":240,"d":"240.00 €"}}]
[null,"Račun 3-456-1 Podatki 17","3-456-1",17,17,{"v":17,"d":"17.00 €"},{"v":17,"d":"17.00 €"},{"$f":"(PodrobnostiRačuna[[#This Row],[Količina]]*PodrobnostiRačuna[[#This Row],[Cena enote]])-PodrobnostiRačuna[[#This Row],[Popust]]","v":{"v":272,"d":"272.00 €"}}]
[null,"Račun 3-456-1 Podatki 18","3-456-1",18,18,{"v":18,"d":"18.00 €"},{"v":18,"d":"18.00 €"},{"$f":"(PodrobnostiRačuna[[#This Row],[Količina]]*PodrobnostiRačuna[[#This Row],[Cena enote]])-PodrobnostiRačuna[[#This Row],[Popust]]","v":{"v":306,"d":"306.00 €"}}]
[null,"Račun 3-456-1 Podatki 19","3-456-1",19,19,{"v":19,"d":"19.00 €"},{"v":19,"d":"19.00 €"},{"$f":"(PodrobnostiRačuna[[#This Row],[Količina]]*PodrobnostiRačuna[[#This Row],[Cena enote]])-PodrobnostiRačuna[[#This Row],[Popust]]","v":{"v":342,"d":"342.00 €"}}]
[null,"Račun 3-456-1 Podatki 20","3-456-1",20,20,{"v":20,"d":"20.00 €"},{"v":20,"d":"20.00 €"},{"$f":"(PodrobnostiRačuna[[#This Row],[Količina]]*PodrobnostiRačuna[[#This Row],[Cena enote]])-PodrobnostiRačuna[[#This Row],[Popust]]","v":{"v":380,"d":"380.00 €"}}]
[null,"Račun 3-456-1 Podatki 21","3-456-1",21,21,{"v":21,"d":"21.00 €"},{"v":21,"d":"21.00 €"},{"$f":"(PodrobnostiRačuna[[#This Row],[Količina]]*PodrobnostiRačuna[[#This Row],[Cena enote]])-PodrobnostiRačuna[[#This Row],[Popust]]","v":{"v":420,"d":"420.00 €"}}]
[null,"Račun 3-456-1 Podatki 22","3-456-1",22,22,{"v":22,"d":"22.00 €"},{"v":22,"d":"22.00 €"},{"$f":"(PodrobnostiRačuna[[#This Row],[Količina]]*PodrobnostiRačuna[[#This Row],[Cena enote]])-PodrobnostiRačuna[[#This Row],[Popust]]","v":{"v":462,"d":"462.00 €"}}]
[null,"Račun 3-456-1 Podatki 23","3-456-1",23,23,{"v":23,"d":"23.00 €"},{"v":23,"d":"23.00 €"},{"$f":"(PodrobnostiRačuna[[#This Row],[Količina]]*PodrobnostiRačuna[[#This Row],[Cena enote]])-PodrobnostiRačuna[[#This Row],[Popust]]","v":{"v":506,"d":"506.00 €"}}]
[null,"Račun 3-456-1 Podatki 24","3-456-1",24,24,{"v":24,"d":"24.00 €"},{"v":24,"d":"24.00 €"},{"$f":"(PodrobnostiRačuna[[#This Row],[Količina]]*PodrobnostiRačuna[[#This Row],[Cena enote]])-PodrobnostiRačuna[[#This Row],[Popust]]","v":{"v":552,"d":"552.00 €"}}]
[null,"Račun 3-456-1 Podatki 25","3-456-1",25,25,{"v":25,"d":"25.00 €"},{"v":25,"d":"25.00 €"},{"$f":"(PodrobnostiRačuna[[#This Row],[Količina]]*PodrobnostiRačuna[[#This Row],[Cena enote]])-PodrobnostiRačuna[[#This Row],[Popust]]","v":{"v":600,"d":"600.00 €"}}]
[null,"Račun 3-456-2 Podatki 1","3-456-2","Z4567",39,{"v":5,"d":"5.00 €"},null,{"$f":"(PodrobnostiRačuna[[#This Row],[Količina]]*PodrobnostiRačuna[[#This Row],[Cena enote]])-PodrobnostiRačuna[[#This Row],[Popust]]","v":{"v":195,"d":"195.00 €"}}]
[null,"Račun 3-456-2 Podatki 2","3-456-2","Z4568",40,{"v":4,"d":"4.00 €"},{"v":5,"d":"5.00 €"},{"$f":"(PodrobnostiRačuna[[#This Row],[Količina]]*PodrobnostiRačuna[[#This Row],[Cena enote]])-PodrobnostiRačuna[[#This Row],[Popust]]","v":{"v":155,"d":"155.00 €"}}]
[null,"Račun 3-456-2 Podatki 3","3-456-2","Z4569",30,{"v":6,"d":"6.00 €"},{"v":7,"d":"7.00 €"},{"$f":"(PodrobnostiRačuna[[#This Row],[Količina]]*PodrobnostiRačuna[[#This Row],[Cena enote]])-PodrobnostiRačuna[[#This Row],[Popust]]","v":{"v":173,"d":"173.00 €"}}]
[null,"Račun 3-456-2 Podatki 4","3-456-2","Z4570",40,{"v":7,"d":"7.00 €"},null,{"$f":"(PodrobnostiRačuna[[#This Row],[Količina]]*PodrobnostiRačuna[[#This Row],[Cena enote]])-PodrobnostiRačuna[[#This Row],[Popust]]","v":{"v":280,"d":"280.00 €"}}]
[null,"Račun 3-456-2 Podatki 5","3-456-2","Z4571",10,{"v":4,"d":"4.00 €"},null,{"$f":"(PodrobnostiRačuna[[#This Row],[Količina]]*PodrobnostiRačuna[[#This Row],[Cena enote]])-PodrobnostiRačuna[[#This Row],[Popust]]","v":{"v":40,"d":"40.00 €"}}]
[null,"Račun 3-456-2 Podatki 6","3-456-2","Z4572",5,{"v":8,"d":"8.00 €"},null,{"$f":"(PodrobnostiRačuna[[#This Row],[Količina]]*PodrobnostiRačuna[[#This Row],[Cena enote]])-PodrobnostiRačuna[[#This Row],[Popust]]","v":{"v":40,"d":"40.00 €"}}]
[null,"Račun 3-456-2 Podatki 7","3-456-2","Z4573",70,{"v":6,"d":"6.00 €"},null,{"$f":"(PodrobnostiRačuna[[#This Row],[Količina]]*PodrobnostiRačuna[[#This Row],[Cena enote]])-PodrobnostiRačuna[[#This Row],[Popust]]","v":{"v":420,"d":"420.00 €"}}]
[null,"Račun 3-456-2 Podatki 8","3-456-2","Z4574",25,{"v":4,"d":"4.00 €"},null,{"$f":"(PodrobnostiRačuna[[#This Row],[Količina]]*PodrobnostiRačuna[[#This Row],[Cena enote]])-PodrobnostiRačuna[[#This Row],[Popust]]","v":{"v":100,"d":"100.00 €"}}]
[null,"Račun 3-456-2 Podatki 9","3-456-2","Z4575",5,{"v":7,"d":"7.00 €"},{"v":3,"d":"3.00 €"},{"$f":"(PodrobnostiRačuna[[#This Row],[Količina]]*PodrobnostiRačuna[[#This Row],[Cena enote]])-PodrobnostiRačuna[[#This Row],[Popust]]","v":{"v":32,"d":"32.00 €"}}]
[null,"Račun 3-456-2 Podatki 10","3-456-2","Z4576",80,{"v":1,"d":"1.00 €"},null,{"$f":"(PodrobnostiRačuna[[#This Row],[Količina]]*PodrobnostiRačuna[[#This Row],[Cena enote]])-PodrobnostiRačuna[[#This Row],[Popust]]","v":{"v":80,"d":"80.00 €"}}]
[null,"Račun 3-456-2 Podatki 11","3-456-2","Z4577",65,{"v":7,"d":"7.00 €"},null,{"$f":"(PodrobnostiRačuna[[#This Row],[Količina]]*PodrobnostiRačuna[[#This Row],[Cena enote]])-PodrobnostiRačuna[[#This Row],[Popust]]","v":{"v":455,"d":"455.00 €"}}]
[null,"Račun 3-456-2 Podatki 12","3-456-2","Z4578",44,{"v":1,"d":"1.00 €"},null,{"$f":"(PodrobnostiRačuna[[#This Row],[Količina]]*PodrobnostiRačuna[[#This Row],[Cena enote]])-PodrobnostiRačuna[[#This Row],[Popust]]","v":{"v":44,"d":"44.00 €"}}]

{"sheet":"Več o sledilniku računov","index":4,"n_rows":40,"n_cols":3,"rows_kept":40,"merged":[[3,1,3,7],[4,1,4,7],[5,1,5,7],[6,1,6,7],[7,2,7,7],[8,2,8,7],[9,2,9,7],[10,2,10,7],[11,2,11,7],[12,1,12,7],[13,2,13,3],[14,2,14,7],[15,1,15,7],[16,2,16,7],[17,2,17,7],[18,2,18,7],[19,2,19,7],[20,2,20,7],[21,2,21,7],[22,1,22,7],[23,1,23,7],[24,2,24,7],[25,2,25,7],[26,2,26,7],[27,2,27,7],[28,1,28,7],[29,1,29,7],[30,2,30,7],[31,2,31,7],[32,2,32,7],[33,2,33,7],[34,2,34,7],[36,2,36,7],[37,2,37,7],[38,2,38,7],[39,2,39,7]]}
[null,"Več o sledilniku računov"]
[]
[]
[null,"Sledilnik računov je namenjen ohranjanju zgodovine strank, računov in podrobnosti o računu, tako da lahko shranite več računov, ne da bi ustvarili več datotek. Če želite analizirati predhodno fakturirane podatke, lahko uporabite tudi sledilnik računov. Ogledate si lahko na primer vse račune za stranko, določen projekt ali pa si ogledate vse račune za zadnji mesec, zadnje leto in še več."]
[null,"Preden začnete, si oglejte vzorčne podatke, ki so na voljo. Na listu »Račun« izberite celico desno od polja »Št. računa« (celica L8) in prikazal se bo spustni seznam. Izberite puščico spustnega seznama in izberite vzročni račun. Opazite lahko, kako se vsi podatki računa samodejno spremenijo in odražajo izbrani račun. Zdaj pa si oglejte liste »Stranke«, »Računi – glavno« in »Podrobnosti o računu«. Vsak od teh listov vsebuje podatke o računu, spremembe, ki jih opravite, pa se posodobijo samodejno. "]
[null,"Kako začnem?"]
[null,"Glede na spodnji postopek spremenite list »Račun«, tako da odraža podatke podjetja:"]
[null,"1.","Pomaknite se do lista Račun in na zavihku Pregled v skupini Zaščiti izberite Odstrani zaščito lista. "]
[null,null,"Opomba: List »Račun« je zaščiten tako, da se izognete nenamernim spremembam, saj je bila večina podatkov na tem listu povlečena iz vseh drugih listov v delovnem zvezku. "]
[null,"2.","Glavo računa prilagodite tako, da vnesete ime podjetja, naslov, mesto, poštno številko, e-poštni naslov, spletno mesto in tako dalje. Na dnu računa (vrstica 43) spremenite navodila za plačilo. "]
[null,null,"Pomembno! Ne spreminjajte podatkov za obračunavanje ali podatkov računa. Vse te celice imajo formule, ki bodo samodejno posodobile račun, kot je navedeno v razdelku Več o sledilniku računov.  "]
[null,"3.","(Izbirno) Spremenite barve v celotnem delovnem zvezku: Na zavihku Postavitev strani v skupini Teme izberite Barve in izberite drug nabor barv teme v galeriji barv. "]
[null,"Namig: Ustvarite nabor barv po meri za temo, da se bo ujemal z znamko podjetja. To storite na zavihku Postavitev strani v skupini Teme, izberite Barve in nato še Prilagodi barve. Če želite več informacij o ustvarjanju nabora barv po meri, si oglejte to temo pomoči: "]
[null,null,"Prilagodite temo dokumenta."]
[null,"4.","Ko naredite želene spremembe, se vrnite na list »Račun« in na zavihku »Pregled« v skupini »Spremembe« izberite »Zaščiti list« ter »V redu«. Ko je list »Račun« zaščiten, je edina celica, ki jo lahko izberete, celica s spustnim seznamom »Št. računa«."]
[null,"Kako ustvarim račun?"]
[null,"1.","Na listu »Stranke« vnesite podatke o strankah, kot sta ime in naslov podjetja. Upoštevajte, da je »Št. podjetja« pomemben vnos, saj zagotavlja enolični identifikator za posamezno podjetje, ki se uporablja v celotnem sledilniku računov. Upoštevajte tudi, da morate podjetje dodati le enkrat. Ta korak lahko preskočite za nadaljnje račune za isto podjetje. "]
[null,null,"Opomba: Če dodelite isto številko več kot enemu podjetju ali pa vnesete isto ime podjetja več kot enkrat, se bodo vnosi obarvali rdeče, da vas opozorijo na podvajanje. "]
[null,"2.","Na listu »Računi – glavno« vnesite primarne podatke za račun, na primer št. računa, datum računa in opis projekta. Podobno kot »Št. podjetja« je tudi »Št. računa« pomemben vnos, saj zagotavlja enolični identifikator za posamezen račun, ki se uporablja v celotnem sledilniku računov. Še en pomemben vnos je »Podjetje«. Ko na spustnem seznamu izberete podjetje, poveže vaš račun s tem podjetjem. Ko na listu »Račun« izberete »Št. računa«, bodo podatki podjetja, kot sta ime in naslov podjetja, samodejno izpolnjeni na računu."]
[null,null,"Opomba: Če dodelite isto številko več kot enemu računu, se bodo vnosi obarvali rdeče, da vas opozorijo na podvajanje. "]
[null,"3.","Na listu »Podrobnostmi o računu« vnesite podrobnosti za svoj račun, na primer opis elementa, št. elementa, količino in ceno enote. Spustni seznam »Št. računa« zagotavlja seznam računov, ki ste jih vnesli na listu »Računi – glavno« za olajšanje vnašanja podatkov. Podobno kot pri polju »Št. podjetja« v prejšnjem koraku tudi »Št. računa« poveže ta element s podrobnostmi z določenim računom. Ko na spustnem seznamu »Št. računa« na listu »Račun« izberete »Št. računa«, se bodo prikazali elementi s podrobnostmi o računu za ta račun."]
[null,null,"Opomba: Omejitev je 25 elementov s podrobnostmi na račun. Če je dodanih več kot 25 elementov, se bodo vsi ustrezni vnosi obarvali rdeče, da vas opozorijo na to omejitev. Če imate več kot 25 elementov računa, boste morali ustvariti drug račun. "]
[null,"Kako dodam več strank, računov in podrobnosti o računu?"]
[null,"Podatki za stranke, račune in podrobnosti o računu so shranjeni v Excelovih tabelah. Ko v tabelo dodate novo vrstico, bo nova dodana vrstica samodejno oblikovana, vsi izračuni pa bodo kopirani. Če želite dodati nove vrstice tabele, naredite eno od tega:"]
[null,"● ","Če tabela ne vsebuje vrstice »Skupna vsota«, začnite vnašati podatke pod tabelo, ki se samodejno razširi, ko pritisnete tipko Enter ali Tab."]
[null,"● ","Kazalec celice premaknite v zadnjo celico nad vrstico »Skupna vsota«, kot je celica »Opombe« za zadnji račun v tabeli »Računi«, in nato pritisnite tipko Tab."]
[null,"● ","Na zavihku Osnovno v skupini Celice izberite Vstavi in nato Vrstice tabele zgoraj ali Vrstica tabele spodaj. "]
[null,"● ","V spodnjem desnem kotu tabele premaknite kazalec miške na ročico za spreminjanje velikosti tabele in jo povlecite navzdol, da povečate število vrstic v tabeli, ki so na voljo."]
[null,"Kako analiziram podrobnosti o računu?"]
[null,"Kot je navedeno v razdelku »Več o sledilniku računov«, si lahko po vnosu več računov ogledate seznam vseh računov za določeno stranko, projekt, navedeni časovni interval in drugo. Ta vrsta analize je dosežena s filtriranjem, ki vam omogoča, da hitro zožite seznam podatkov. Če želite dostopiti do filtra v tabelah »Stranke«, »Računi« ali »Podrobnosti računa«, izberite puščico spustnega seznama ob poljubnem imenu polja tabele. Podokno filtriranja bo prikazano z različnimi možnostmi filtriranja. Tukaj je nekaj primerov filtriranja, s katerimi lahko začnete:"]
[null,"● ","Če si želite ogledati skupni znesek, ki ste ga fakturirali določeni stranki: Na listu »Računi – glavno« na desni strani polja »Št. podjetja« izberite puščico spustnega seznama. V podoknu filtriranja kliknite »Izberi vse«, da prekličete izbor vseh podjetij, izberite želeno podjetje in nato »V redu«. "]
[null,null,"Namig: V podoknu Filter lahko vnesete tudi ime stranke v besedilno polje Išči, da hitro preiščete razpoložljivi seznam."]
[null,"● ","Če si želite ogledati vse račune za določeno stranko in projekte: Začnite tako, da filtrirate po želeni stranki glede na navodila v prejšnjem primeru. Nato na desni strani polja »Št. projekta« izberite puščico spustnega seznama. V podoknu filtriranja izberite želeni projekt ali projekte in nato izberite »V redu«. "]
[null,"● ","Če si želite ogledati vse račune za pretekli mesec: Na listu »Računi – glavno« na desni strani polja »Datum računa« izberite puščico spustnega seznama, pokažite na datumske filtre in nato izberite »Zadnji mesec«."]
[null,"● ","Če si želite ogledati vse stranke z isto območno kodo: Na listu »Stranke« na desni strani polja »Telefonska številka« izberite puščico spustnega seznama. V podoknu filtriranja kliknite v polju z besedilom za iskanje, vnesite območno kodo, nato pa izberite V redu. "]
[null,"Nasveti za filtriranje"]
[null,"● ","Če je v tabeli vrstica »Vsote«, na primer »Stranke« in »Računi«, bodo izračunane vsote odražale le vaš filtriran seznam."]
[null,"● ","Uporabite več filtrov v enem polju ali več poljih za natančnejše prilagajanje rezultatov."]
[null,"● ","Če želite počistiti en filter, izberite puščico spustnega seznama za predhodno filtriran stolpec in nato izberite Počisti filter iz <ime polja>."]
[null,"● ","Če želite počistiti več filtrov hkrati, postavite kazalec celice v tabeli na zavihek Osnovno v skupini Urejanje izberite Razvrsti in filtriraj in nato izberite Počisti."]